fUSD/lending_fUSD_20241207
["ID","MTS","AMOUNT","RATE_DAILY","PERIOD"]
[344547096,1733541069132,-500.0,0.00013415,2]
[344547097,1733541069141,-1134.32,0.00013415,2]
[344547098,1733541069151,-500.0,0.00013415,2]
[344547099,1733541069161,-500.0,0.00013415,2]
[344547100,1733541069171,-500.0,0.00013415,2]
[344547101,1733541069180,-500.0,0.00013415,2]
[344547102,1733541069191,-729.35,0.00013415,2]
[344547103,1733541069201,-500.0,0.00013415,2]
[344547104,1733541069212,-655.62,0.00013415,2]
[344547105,1733541069222,-500.0,0.00013415,2]
[344547106,1733541069232,-500.0,0.00013415,2]
[344547107,1733541069243,-500.0,0.00013415,2]
[344547108,1733541069253,-500.0,0.00013415,2]
[344547109,1733541069263,-500.0,0.00013415,2]
[344547110,1733541069273,-500.0,0.00013415,2]
[344547111,1733541069284,-559.97,0.00013415,2]
[344547112,1733541069304,-500.0,0.00013415,2]
[344547113,1733541069319,-500.0,0.00013415,2]
[344547114,1733541069330,-629.17,0.00013415,2]
[344547115,1733541069340,-500.0,0.00013415,2]
[344547116,1733541069352,-522.4,0.00013415,2]
[344547117,1733541069364,-500.0,0.00013415,2]
[344547118,1733541069375,-558.13,0.00013415,2]
[344547119,1733541069384,-500.0,0.00013415,2]
[344547120,1733541069394,-596.81,0.00013415,2]
[344547121,1733541069404,-1715.02,0.00013415,2]
[344547122,1733541069414,-563.06617985,0.00013415,2]
[344547123,1733541069424,-743.73,0.00013415,2]
[344547124,1733541069434,-607.63,0.00013415,2]
[344547125,1733541069444,-3248.7,0.00013415,2]
[344547126,1733541069454,-500.0,0.00013415,2]
[344547127,1733541069465,-857.46,0.00013415,2]
[344547128,1733541069476,-500.0,0.00013415,2]
[344547129,1733541069486,-3403.71,0.00013415,2]
[344547130,1733541069496,-546.54,0.00013415,2]
[344547131,1733541069506,-500.0,0.00013415,2]
[344547132,1733541069515,-545.2,0.00013415,2]
[344547133,1733541069525,-506.19,0.00013415,2]
[344547134,1733541069535,-922.6,0.00013415,2]
[344547135,1733541069545,-500.0,0.00013415,2]
[344547136,1733541069555,-500.0,0.00013415,2]
[344547137,1733541069567,-1285.83,0.00013415,2]
[344547138,1733541069577,-553.43,0.00013415,2]
[344547139,1733541069592,-1097.94,0.00013415,2]
[344547140,1733541069601,-500.0,0.00013415,2]
[344547141,1733541069610,-753.13,0.00013415,2]
[344547142,1733541069620,-610.6,0.00013415,2]
[344547143,1733541069630,-893.85,0.00013415,2]
[344547144,1733541069639,-500.0,0.00013415,2]
[344547145,1733541069648,-500.0,0.00013415,2]
[344547146,1733541069659,-2397.76,0.00013415,2]
[344547147,1733541069669,-500.0,0.00013415,2]
[344547148,1733541069679,-500.0,0.00013415,2]
[344547149,1733541069689,-500.0,0.00013415,2]
[344547150,1733541069699,-500.0,0.00013415,2]
[344547151,1733541069709,-500.0,0.00013415,2]
[344547152,1733541069720,-500.0,0.00013415,2]
[344547153,1733541069731,-500.0,0.00013415,2]
[344547154,1733541069742,-1962.86,0.00013415,2]
[344547155,1733541069751,-500.0,0.00013415,2]
[344547156,1733541069761,-3708.05,0.00013415,2]
[344547157,1733541069771,-500.0,0.00013415,2]
[344547158,1733541069781,-500.0,0.00013415,2]
[344547159,1733541069793,-500.0,0.00013415,2]
[344547160,1733541069803,-500.0,0.00013415,2]
[344547161,1733541069813,-1882.97,0.00013415,2]
[344547162,1733541069822,-500.0,0.00013415,2]
[344547163,1733541069832,-500.0,0.00013415,2]
[344547164,1733541069842,-555.52,0.00013415,2]
[344547165,1733541069852,-500.0,0.00013415,2]
[344547166,1733541069862,-500.0,0.00013415,2]
[344547167,1733541069872,-500.0,0.00013415,2]
[344547168,1733541069883,-500.0,0.00013415,2]
[344547169,1733541069893,-841.17,0.00013415,2]
[344547170,1733541069903,-584.44,0.00013415,2]
[344547171,1733541069914,-656.6,0.00013415,2]
[344547172,1733541069924,-500.0,0.00013415,2]
[344547173,1733541069934,-868.73,0.00013415,2]
[344547174,1733541069945,-500.0,0.00013415,2]
[344547175,1733541069955,-730.65,0.00013415,2]
[344547176,1733541069964,-691.9,0.00013415,2]
[344547177,1733541069974,-500.0,0.00013415,2]
[344547178,1733541069984,-500.0,0.00013415,2]
[344547179,1733541069994,-500.0,0.00013415,2]
[344547180,1733541070003,-500.0,0.00013415,2]
[344547181,1733541070013,-3564.03,0.00013415,2]
[344547182,1733541070023,-1736.61,0.00013415,2]
[344547183,1733541070033,-2880.03,0.00013415,2]
[344547184,1733541070044,-500.0,0.00013415,2]
[344547185,1733541070054,-574.1,0.00013415,2]
[344547186,1733541070064,-605.61,0.00013415,2]
[344547187,1733541070077,-1145.2,0.00013415,2]
[344547188,1733541070087,-500.0,0.00013415,2]
[344547189,1733541070098,-555.52163742,0.00013415,2]
[344547190,1733541070108,-500.0,0.00013415,2]
[344547191,1733541070118,-500.0,0.00013415,2]
[344547192,1733541070128,-500.0,0.00013415,2]
[344547193,1733541070137,-500.0,0.00013415,2]
[344547194,1733541070148,-500.0,0.00013415,2]
[344547195,1733541070158,-500.0,0.00013415,2]
[344547196,1733541070167,-500.0,0.00013415,2]
[344547197,1733541070177,-500.0,0.00013415,2]
[344547198,1733541070187,-977.63,0.00013415,2]
[344547199,1733541070196,-500.0,0.00013415,2]
[344547200,1733541070207,-500.0,0.00013415,2]
[344547201,1733541070216,-857.76,0.00013415,2]
[344547202,1733541070226,-866.03,0.00013415,2]
[344547203,1733541070236,-500.0,0.00013415,2]
[344547204,1733541070246,-388.57939372,0.00013415,2]
[344547205,1733541070255,-4199.14,0.00013415,2]
[344547206,1733541070265,-843.87,0.00013415,2]
[344547207,1733541070275,-2318.54,0.00013415,2]
[344547208,1733541070286,-500.0,0.00013415,2]
[344547209,1733541070295,-500.0,0.00013415,2]
[344547210,1733541070304,-500.0,0.00013415,2]
[344547211,1733541070314,-500.0,0.00013415,2]
[344547212,1733541070323,-500.0,0.00013416,2]
[344547213,1733541070332,-513.08,0.00013416,2]
[344547214,1733541070342,-500.0,0.00013416,2]
[344547215,1733541070352,-500.0,0.00013416,2]
[344547216,1733541070362,-500.0,0.00013416,2]
[344547217,1733541070372,-500.0,0.00013416,2]
[344547218,1733541070382,-500.0,0.00013416,2]
[344547219,1733541070392,-500.0,0.00013416,2]
[344547220,1733541070402,-500.0,0.00013416,2]
[344547221,1733541070412,-164.62014017,0.00013416,2]
[344547222,1733541070422,-169.95106589,0.00013416,2]
[344547223,1733541070432,-500.0,0.00013416,2]
[344547224,1733541070442,-500.0,0.00013416,2]
[344547225,1733541070452,-333.43759029,0.00013416,2]
[344547226,1733541070463,-500.0,0.00013416,2]
[344547227,1733541070473,-500.0,0.00013416,2]
[344547228,1733541070483,-500.0,0.00013416,2]
[344547229,1733541070492,-500.0,0.00013416,2]
[344547230,1733541070502,-500.0,0.00013416,2]
[344547231,1733541070512,-500.0,0.00013416,2]
[344547232,1733541070522,-500.0,0.00013416,2]
[344547233,1733541070532,-500.0,0.00013416,2]
[344547234,1733541070543,-500.0,0.00013416,2]
[344547235,1733541070554,-500.0,0.00013416,2]
[344547236,1733541070564,-500.0,0.00013416,2]
[344547237,1733541070573,-500.0,0.00013416,2]
[344547238,1733541070585,-500.0,0.00013416,2]
[344547239,1733541070597,-561.77,0.00013416,2]
[344547240,1733541070606,-963.02,0.00013416,2]
[344547241,1733541070615,-2668.21,0.00013416,2]
[344547242,1733541070627,-500.0,0.00013416,2]
[344547243,1733541070637,-1000.0,0.00013416,2]
[344547244,1733541070646,-500.0,0.00013416,2]
[344547245,1733541070656,-500.0,0.00013416,2]
[344547246,1733541070667,-266.26231568,0.00013417,2]
[344547247,1733541070676,-627.31,0.00013417,2]
[344547248,1733541070686,-500.0,0.00013417,2]
[344547249,1733541070695,-550.39110819,0.00013417,2]
[344547250,1733541070705,-500.0,0.00013417,2]
[344547251,1733541070714,-500.0,0.00013417,2]
[344547252,1733541070723,-533.44,0.00013417,2]
[344547253,1733541070733,-500.0,0.00013417,2]
[344547254,1733541070743,-500.0,0.00013417,2]
[344547255,1733541070752,-500.0,0.00013417,2]
[344547256,1733541070763,-546.95,0.00013417,2]
[344547257,1733541070772,-500.0,0.00013417,2]
[344547258,1733541070782,-500.0,0.00013417,2]
[344547259,1733541070793,-500.0,0.00013417,2]
[344547260,1733541070803,-500.0,0.00013417,2]
[344547261,1733541070812,-273.03550777,0.00013417,2]
[344547262,1733541070822,-500.0,0.00013417,2]
[344547263,1733541070832,-500.0,0.00013417,2]
[344547264,1733541070843,-729.39,0.00013419,2]
[344547265,1733541070852,-797.71252825,0.00013424,2]
[344547266,1733541070862,-959.0,0.00013424,2]
[344547267,1733541070871,-4455.3,0.00013424,2]
[344547268,1733541070881,-4455.3,0.00013424,2]
[344547269,1733541070891,-4455.3,0.00013424,2]
[344547270,1733541070901,-4455.3,0.00013424,2]
[344547271,1733541070911,-4455.3,0.00013424,2]
[344547272,1733541070921,-4455.3,0.00013424,2]
[344547273,1733541070931,-4455.3,0.00013424,2]
[344547274,1733541070941,-4455.3,0.00013424,2]
[344547275,1733541070952,-4455.3,0.00013424,2]
[344547276,1733541070962,-4455.3,0.00013424,2]
[344547277,1733541070972,-4455.3,0.00013424,2]
[344547278,1733541070982,-200.0,0.00013498,3]
[344547279,1733541070993,-200.0,0.00013498,3]
[344547280,1733541071002,-200.0,0.00013498,2]
[344547281,1733541071013,-200.0,0.00013498,2]
[344547282,1733541071022,-1000.0,0.000135,2]
[344547283,1733541071032,-500.0,0.000135,2]
[344547284,1733541071043,-5800.0,0.00013512,2]
[344547285,1733541071052,-5800.0,0.00013512,2]
[344547286,1733541071062,-5800.0,0.0001352,2]
[344547287,1733541071071,-5800.0,0.0001352,2]
[344547288,1733541071081,-5800.0,0.00013529,2]
[344547289,1733541071091,-5800.0,0.00013529,2]
[344547290,1733541071156,-5800.0,0.00013529,2]
[344547291,1733541071166,-5800.0,0.00013537,2]
[344547292,1733541071177,-5800.0,0.00013537,2]
[344547293,1733541071187,-5800.0,0.00013537,2]
[344547294,1733541071197,-5800.0,0.00013537,2]
[344547295,1733541071207,-500.0,0.00013547,2]
[344547296,1733541071217,-500.0,0.00013684,2]
[344547297,1733541071228,-500.0,0.00013689,2]
[344547298,1733541071238,-500.0,0.00013689,2]
[344547299,1733541071248,-562.43,0.00013689,2]
[344547300,1733541071257,-500.0,0.00013689,2]
[344547301,1733541071267,-500.0,0.00013689,2]
[344547302,1733541071277,-500.0,0.00013689,2]
[344547303,1733541071288,-500.0,0.00013689,2]
[344547304,1733541071297,-500.0,0.00013689,2]
[344547305,1733541071307,-500.0,0.00013689,2]
[344547306,1733541071317,-500.0,0.00013689,2]
[344547307,1733541071327,-500.0,0.00013689,2]
[344547308,1733541071336,-500.0,0.00013689,2]
[344547309,1733541071346,-500.0,0.00013689,2]
[344547310,1733541071355,-500.0,0.00013689,2]
[344547311,1733541071365,-156.21474,0.00013689,2]
[344547312,1733541071375,-287.85079603,0.00013689,2]
[344547313,1733541071384,-500.0,0.00013689,2]
[344547314,1733541071393,-603.70538208,0.00013689,2]
[344547315,1733541071403,-569.03,0.00013689,2]
[344547316,1733541071412,-500.0,0.00013689,2]
[344547317,1733541071422,-500.0,0.00013689,2]
[344547318,1733541071432,-500.0,0.00013689,2]
[344547319,1733541071443,-712.37,0.00013689,2]
[344547320,1733541071452,-755.27,0.00013689,2]
[344547321,1733541071463,-538.59007937,0.00013689,2]
[344547322,1733541071474,-500.0,0.00013689,2]
[344547323,1733541071484,-500.0,0.00013689,2]
[344547324,1733541071494,-1134.32,0.00013689,2]
[344547325,1733541071503,-500.0,0.00013689,2]
[344547326,1733541071513,-500.0,0.00013689,2]
[344547327,1733541071522,-294.62087515,0.00013689,2]
[344547328,1733541071532,-500.0,0.00013689,2]
[344547329,1733541071545,-729.35,0.00013689,2]
[344547330,1733541071557,-500.0,0.00013689,2]
[344547331,1733541071568,-655.62,0.00013689,2]
[344547332,1733541071577,-500.0,0.00013689,2]
[344547333,1733541071589,-500.0,0.00013689,2]
[344547334,1733541071599,-500.0,0.00013689,2]
[344547335,1733541071609,-500.0,0.00013689,2]
[344547336,1733541071618,-500.0,0.00013689,2]
[344547337,1733541071628,-559.97,0.00013689,2]
[344547338,1733541071638,-500.0,0.00013689,2]
[344547339,1733541071648,-527.7245106,0.00013689,2]
[344547340,1733541071659,-629.17,0.00013689,2]
[344547341,1733541071668,-500.0,0.00013689,2]
[344547342,1733541071678,-522.4,0.00013689,2]
[344547343,1733541071687,-500.0,0.00013689,2]
[344547344,1733541071698,-558.13,0.00013689,2]
[344547345,1733541071707,-500.0,0.00013689,2]
[344547346,1733541071716,-596.81,0.00013689,2]
[344547347,1733541071725,-1715.02,0.00013689,2]
[344547348,1733541071735,-743.73,0.00013689,2]
[344547349,1733541071744,-607.63,0.00013689,2]
[344547350,1733541071753,-3248.7,0.00013689,2]
[344547351,1733541071764,-500.0,0.00013689,2]
[344547352,1733541071774,-857.46,0.00013689,2]
[344547353,1733541071783,-500.0,0.00013689,2]
[344547354,1733541071795,-3403.71,0.00013689,2]
[344547355,1733541071805,-546.54,0.00013689,2]
[344547356,1733541071814,-500.0,0.00013689,2]
[344547357,1733541071823,-545.2,0.00013689,2]
[344547358,1733541071833,-506.19,0.00013689,2]
[344547359,1733541071842,-922.6,0.00013689,2]
[344547360,1733541071852,-500.0,0.00013689,2]
[344547361,1733541071862,-500.0,0.00013689,2]
[344547362,1733541071871,-1285.83,0.00013689,2]
[344547363,1733541071882,-553.43,0.00013689,2]
[344547364,1733541071891,-1097.94,0.00013689,2]
[344547365,1733541071900,-500.0,0.00013689,2]
[344547366,1733541071909,-753.13,0.00013689,2]
[344547367,1733541071918,-610.6,0.00013689,2]
[344547368,1733541071927,-893.85,0.00013689,2]
[344547369,1733541071937,-500.0,0.00013689,2]
[344547370,1733541071947,-500.0,0.00013689,2]
[344547371,1733541071956,-2397.76,0.00013689,2]
[344547372,1733541071966,-500.0,0.00013689,2]
[344547373,1733541071975,-500.0,0.00013689,2]
[344547374,1733541071985,-500.0,0.00013689,2]
[344547375,1733541071995,-500.0,0.00013689,2]
[344547376,1733541072004,-500.0,0.00013689,2]
[344547377,1733541072014,-500.0,0.00013689,2]
[344547378,1733541072023,-500.0,0.00013689,2]
[344547379,1733541072033,-1962.86,0.00013689,2]
[344547380,1733541072043,-500.0,0.00013689,2]
[344547381,1733541072053,-3708.05,0.00013689,2]
[344547382,1733541072063,-500.0,0.00013689,2]
[344547383,1733541072072,-500.0,0.00013689,2]
[344547384,1733541072081,-500.0,0.00013689,2]
[344547385,1733541072090,-500.0,0.00013689,2]
[344547386,1733541072099,-1882.97,0.00013689,2]
[344547387,1733541072108,-500.0,0.00013689,2]
[344547388,1733541072118,-500.0,0.00013689,2]
[344547389,1733541072127,-555.52,0.00013689,2]
[344547390,1733541072137,-500.0,0.00013689,2]
[344547391,1733541072146,-500.0,0.00013689,2]
[344547392,1733541072156,-500.0,0.00013689,2]
[344547393,1733541072165,-500.0,0.00013689,2]
[344547394,1733541072174,-841.17,0.00013689,2]
[344547395,1733541072183,-584.44,0.00013689,2]
[344547396,1733541072194,-656.6,0.00013689,2]
[344547397,1733541072204,-500.0,0.00013689,2]
[344547398,1733541072214,-868.73,0.00013689,2]
[344547399,1733541072224,-500.0,0.00013689,2]
[344547400,1733541072234,-691.9,0.00013689,2]
[344547401,1733541072243,-730.65,0.00013689,2]
[344547402,1733541072252,-500.0,0.00013689,2]
[344547403,1733541072262,-500.0,0.00013689,2]
[344547404,1733541072272,-360.2792049,0.00013689,2]
[344547405,1733541072281,-500.0,0.00013689,2]
[344547406,1733541072292,-1736.61,0.00013689,2]
[344547407,1733541072302,-3564.03,0.00013689,2]
[344547408,1733541072311,-2880.03,0.00013689,2]
[344547409,1733541072324,-500.0,0.00013689,2]
[344547410,1733541072333,-574.1,0.00013689,2]
[344547411,1733541072343,-605.61,0.00013689,2]
[344547412,1733541072352,-1145.2,0.00013689,2]
[344547413,1733541072362,-500.0,0.00013689,2]
[344547414,1733541072372,-500.0,0.00013689,2]
[344547415,1733541072384,-500.0,0.00013689,2]
[344547416,1733541072395,-500.0,0.00013689,2]
[344547417,1733541072405,-500.0,0.00013689,2]
[344547418,1733541072414,-153.04487225,0.00013689,2]
[344547419,1733541072424,-500.0,0.00013689,2]
[344547420,1733541072434,-500.0,0.00013689,2]
[344547421,1733541072443,-500.0,0.00013689,2]
[344547422,1733541072452,-977.63,0.00013689,2]
[344547423,1733541072462,-500.0,0.00013689,2]
[344547424,1733541072471,-500.0,0.00013689,2]
[344547425,1733541072481,-857.76,0.00013689,2]
[344547426,1733541072490,-866.03,0.00013689,2]
[344547427,1733541072500,-500.0,0.00013689,2]
[344547428,1733541072509,-4199.14,0.00013689,2]
[344547429,1733541072518,-843.87,0.00013689,2]
[344547430,1733541072527,-2318.54,0.00013689,2]
[344547431,1733541072535,-500.0,0.00013689,2]
[344547432,1733541072546,-500.0,0.00013689,2]
[344547433,1733541072555,-500.0,0.00013689,2]
[344547434,1733541072564,-500.0,0.00013689,2]
[344547435,1733541072573,-500.0,0.0001369,2]
[344547436,1733541072583,-513.08,0.0001369,2]
[344547437,1733541072596,-500.0,0.0001369,2]
[344547438,1733541072606,-500.0,0.0001369,2]
[344547439,1733541072615,-500.0,0.0001369,2]
[344547440,1733541072625,-500.0,0.0001369,2]
[344547441,1733541072634,-197.70989874,0.0001369,2]
[344547442,1733541072643,-500.0,0.0001369,2]
[344547443,1733541072652,-315.12608958,0.0001369,2]
[344547444,1733541072663,-500.0,0.0001369,2]
[344547445,1733541072673,-500.0,0.0001369,2]
[344547446,1733541072683,-500.0,0.0001369,2]
[344547447,1733541072692,-500.0,0.0001369,2]
[344547448,1733541072702,-500.0,0.0001369,2]
[344547449,1733541072711,-500.0,0.0001369,2]
[344547450,1733541072720,-500.0,0.0001369,2]
[344547451,1733541072729,-500.0,0.0001369,2]
[344547452,1733541072738,-500.0,0.0001369,2]
[344547453,1733541072747,-500.0,0.0001369,2]
[344547454,1733541072757,-500.0,0.0001369,2]
[344547455,1733541072766,-500.0,0.0001369,2]
[344547456,1733541072775,-500.0,0.0001369,2]
[344547457,1733541072784,-628.20463868,0.0001369,2]
[344547458,1733541072796,-4455.3,0.0001369,2]
[344547459,1733541072806,-500.0,0.0001369,2]
[344547460,1733541072815,-561.77,0.0001369,2]
[344547461,1733541072824,-963.02,0.0001369,2]
[344547462,1733541072834,-2668.21,0.0001369,2]
[344547463,1733541072844,-309.02759629,0.0001369,2]
[344547464,1733541072853,-1000.0,0.0001369,2]
[344547465,1733541072863,-500.0,0.0001369,2]
[344547466,1733541072872,-500.0,0.0001369,2]
[344547467,1733541072881,-627.31,0.00013691,2]
[344547468,1733541072891,-500.0,0.00013691,2]
[344547469,1733541072900,-500.0,0.00013691,2]
[344547470,1733541072909,-500.0,0.00013691,2]
[344547471,1733541072919,-533.44,0.00013691,2]
[344547472,1733541072928,-500.0,0.00013691,2]
[344547473,1733541072938,-500.0,0.00013691,2]
[344547474,1733541072948,-500.0,0.00013691,2]
[344547475,1733541072958,-546.95,0.00013691,2]
[344547476,1733541072967,-500.0,0.00013691,2]
[344547477,1733541072977,-500.0,0.00013691,2]
[344547478,1733541072986,-500.0,0.00013691,2]
[344547479,1733541072996,-500.0,0.00013691,2]
[344547480,1733541073005,-500.0,0.00013691,2]
[344547481,1733541073014,-500.0,0.00013691,2]
[344547482,1733541073024,-729.39,0.00013693,2]
[344547483,1733541073033,-959.0,0.00013698,2]
[344547484,1733541073044,-1000.0,0.00013698,2]
[344547485,1733541073054,-1000.0,0.00013698,2]
[344547486,1733541073064,-1000.0,0.00013698,2]
[344547487,1733541073073,-1000.0,0.00013698,2]
[344547488,1733541073084,-784.05722072,0.00013698,2]
[344547489,1733541073093,-2000.0,0.00013698,2]
[344547490,1733541073103,-2000.0,0.00013698,2]
[344547491,1733541073112,-2000.0,0.00013698,2]
[344547492,1733541073122,-2000.0,0.00013698,2]
[344547493,1733541073131,-2000.0,0.00013698,2]
[344547494,1733541073140,-2000.0,0.00013698,2]
[344547495,1733541073150,-2000.0,0.00013698,2]
[344547496,1733541073159,-2000.0,0.00013698,2]
[344547497,1733541073168,-2000.0,0.00013698,2]
[344547498,1733541073177,-2000.0,0.00013698,2]
[344547499,1733541073187,-2000.0,0.00013698,2]
[344547500,1733541073196,-2000.0,0.00013698,2]
[344547501,1733541073206,-1822.29,0.00013698,2]
[344547502,1733541073215,-1822.29,0.00013698,2]
[344547503,1733541073225,-1822.29,0.00013698,2]
[344547504,1733541073234,-1822.29,0.00013698,2]
[344547505,1733541073243,-515.98557023,0.00013698,2]
[344547506,1733541073253,-1822.29,0.00013698,2]
[344547507,1733541073263,-1822.29,0.00013698,2]
[344547508,1733541073272,-1822.29,0.00013698,2]
[344547509,1733541073282,-1822.29,0.00013698,2]
[344547510,1733541073293,-1822.29,0.00013698,2]
[344547511,1733541073302,-1822.29,0.00013698,2]
[344547512,1733541073312,-1822.29,0.00013698,2]
[344547513,1733541073321,-1822.29,0.00013698,2]
[344547514,1733541073330,-331.64609701,0.00013698,2]
[344547515,1733541073340,-8683.14,0.00013698,7]
[344547516,1733541073350,-8683.14,0.00013698,7]
[344547517,1733541073361,-8683.14,0.00013698,7]
[344547518,1733541073370,-8683.14,0.00013698,7]
[344547519,1733541073380,-8683.14,0.00013698,7]
[344547520,1733541073390,-8683.14,0.00013698,7]
[344547521,1733541073399,-8683.14,0.00013698,7]
[344547522,1733541073408,-8683.14,0.00013698,7]
[344547523,1733541073418,-8683.14,0.00013698,7]
[344547524,1733541073427,-8683.14,0.00013698,7]
[344547525,1733541073437,-8683.14,0.00013698,7]
[344547526,1733541073446,-700.0,0.00013698,2]
[344547527,1733541073455,-700.0,0.00013698,2]
[344547528,1733541073464,-700.0,0.00013698,2]
[344547529,1733541073474,-700.0,0.00013698,2]
[344547530,1733541073484,-700.0,0.00013698,2]
[344547531,1733541073498,-700.0,0.00013698,2]
[344547532,1733541073508,-700.0,0.00013698,2]
[344547533,1733541073518,-700.0,0.00013698,2]
[344547534,1733541073527,-700.0,0.00013698,2]
[344547535,1733541073537,-700.0,0.00013698,2]
[344547536,1733541073546,-700.0,0.00013698,2]
[344547537,1733541073556,-2313.64,0.00013698,10]
[344547538,1733541073565,-2313.64,0.00013698,10]
[344547539,1733541073574,-2313.64,0.00013698,10]
[344547540,1733541073586,-2313.64,0.00013698,10]
[344547541,1733541073596,-2313.64,0.00013698,10]
[344547542,1733541073605,-2313.64,0.00013698,10]
[344547543,1733541073614,-2313.64,0.00013698,10]
[344547544,1733541073624,-2313.64,0.00013698,10]
[344547545,1733541073635,-2313.64,0.00013698,10]
[344547546,1733541073645,-2313.64,0.00013698,10]
[344547547,1733541073655,-2313.64,0.00013698,10]
[344547548,1733541073665,-1941.45,0.00013698,2]
[344547549,1733541073676,-1941.45,0.00013698,2]
[344547550,1733541073685,-1941.45,0.00013698,2]
[344547551,1733541073695,-1941.45,0.00013698,2]
[344547552,1733541073705,-1941.45,0.00013698,2]
[344547553,1733541073714,-1941.45,0.00013698,2]
[344547554,1733541073725,-1941.45,0.00013698,2]
[344547555,1733541073734,-1941.45,0.00013698,2]
[344547556,1733541073744,-1941.45,0.00013698,2]
[344547557,1733541073754,-1941.45,0.00013698,2]
[344547558,1733541073765,-1941.45,0.00013698,2]
[344547559,1733541073775,-1941.45,0.00013698,2]
[344547560,1733541073784,-2000.0,0.00013699,2]
[344547561,1733541073795,-2000.0,0.00013699,2]
[344547562,1733541073804,-2000.0,0.00013699,2]
[344547563,1733541073814,-2000.0,0.00013699,2]
[344547564,1733541073823,-2000.0,0.00013699,2]
[344547565,1733541073834,-500.0,0.00013699,2]
[344547566,1733541073844,-500.0,0.00013699,2]
[344547567,1733541073853,-500.0,0.00013699,2]
[344547568,1733541073863,-500.0,0.00013699,2]
[344547569,1733541073872,-500.0,0.00013699,2]
[344547570,1733541073882,-500.0,0.00013699,2]
[344547571,1733541073892,-500.0,0.00013699,2]
[344547572,1733541073901,-500.0,0.00013699,2]
[344547573,1733541073910,-500.0,0.00013699,2]
[344547574,1733541073919,-500.0,0.00013699,2]
[344547575,1733541073929,-500.0,0.00013699,2]
[344547576,1733541073939,-500.0,0.00013699,2]
[344547577,1733541073948,-500.0,0.00013699,2]
[344547578,1733541073958,-500.0,0.00013699,2]
[344547579,1733541073967,-200.0,0.00013699,2]
[344547580,1733541073977,-500.0,0.00013699,2]
[344547581,1733541073986,-500.0,0.00013699,2]
[344547582,1733541073996,-500.0,0.00013699,2]
[344547583,1733541074006,-500.0,0.00013699,2]
[344547584,1733541074015,-366.25820027,0.00013699,2]
[344547585,1733541074024,-800.0,0.00013699,2]
[344547586,1733541074034,-800.0,0.00013699,2]
[344547587,1733541074045,-800.0,0.00013699,2]
[344547588,1733541074055,-800.0,0.00013699,2]
[344547589,1733541074064,-800.0,0.00013699,2]
[344547590,1733541074074,-800.0,0.00013699,2]
[344547591,1733541074083,-800.0,0.00013699,2]
[344547592,1733541074093,-800.0,0.00013699,2]
[344547593,1733541074102,-800.0,0.00013699,2]
[344547594,1733541074111,-800.0,0.00013699,2]
[344547595,1733541074120,-800.0,0.00013699,2]